{"text_format":"3","workbook":"xlsx","n_sheets":5,"sheets":["Ident. Paciente Hospitalario.","Para Tabular Hospitalario.","Ident. paciente Ambulatorio","Para tabular Ambulatorio.","Instructivo Med. ambulatorio"],"not_rendered":{"images":1,"defined_names":2},"read":"whole","date_system":"1900"}

{"sheet":"Ident. Paciente Hospitalario.","index":0,"n_rows":43,"n_cols":12,"rows_kept":43,"merged":[[0,0,3,0],[0,1,0,9],[1,1,3,9],[3,10,3,11],[4,0,4,11],[5,0,5,2],[5,3,5,5],[5,6,5,8],[5,9,5,11],[6,0,6,11],[7,0,8,0],[7,1,8,1],[7,2,8,4],[7,5,7,7],[7,8,8,11],[9,0,12,0],[9,2,9,4],[9,8,9,11],[10,2,10,4],[10,8,10,11],[11,2,11,4],[11,8,11,11],[12,2,12,4],[12,8,12,11],[13,1,13,4],[13,8,13,11],[14,0,18,0],[14,2,14,4],[14,8,14,11],[15,2,15,4],[15,8,15,11],[16,2,16,4],[16,8,16,11],[17,2,17,4],[17,8,17,11],[18,2,18,4],[18,8,18,11],[19,1,19,4],[19,8,19,11],[20,2,20,4],[20,8,20,11],[21,0,21,4],[21,8,21,11],[22,0,24,0],[22,2,22,4],[22,8,22,11],[23,2,23,4],[23,8,23,11],[24,2,24,4],[24,8,24,11],[25,0,25,4],[25,8,25,11],[27,1,27,4],[28,1,28,4],[28,5,28,7],[30,0,30,4],[31,0,31,1],[31,2,31,4],[32,0,32,1],[32,2,32,4],[33,0,33,1],[33,2,33,4],[34,0,34,1],[34,2,34,4],[35,0,35,1],[35,2,35,4],[41,3,41,9],[42,3,42,9]]}
[null,"FORMATO",{"$nulls":8},"CODIGO","GC-S4-F10"]
[null,"BASE DE DATOS LISTA DE CHEQUEO IDENTIFICACIÓN DE PACIENTE HOSPITALARIO ",{"$nulls":8},"VERSIÓN",4]
[{"$nulls":10},"VIGENCIA","2022-01-05"]
[{"$nulls":10},"PAGINA 1 DE 5 "]
["OBJETIVO:"]
["SEDE:",null,null,"SERVICIO:",null,null,"FECHA:",null,null,"TURNO:  M___  T___ N___"]
[]
["ASPECTO ","No.","CRITERIO",null,null,"CUMPLIMIENTO",null,null,"OBSERVACIONES"]
[{"$nulls":5},"C","NC","NA"]
["GENERALIDADES ",1,"Está disponible en el servicio el Protocolo de identificación del paciente"]
[null,2,"Conoce el personal el protocolo de identificación de paciente"]
[null,3,"Existe disponibilidad permanente de manillas  para identificaciòn de paciente."," Se solicita a  los familiares que salgan de la Habitación "," Se solicita a  los familiares que salgan de la Habitación "]
[null,4,"Existe tablero de cabecera con identificación completa del usuario (nombres y apellidos completos, número de identificación del paciente y riesgos) "]
[null,"SUBTOTAL",{"$nulls":3},{"$f":"COUNTIF(F10:F13,\"X\")","v":0},{"$f":"COUNTIF(G10:G13,\"X\")","v":0},{"$f":"COUNTIF(H10:H13,\"X\")","v":0}]
["INGRESO DEL PACIENTE ",5,"El usuario está identificado en el servicio hospitalario con manilla y esta contiene: nombres y apellidos completos, número de identidad, servicio y riesgo "]
[null,6,"Se asigna el color de la manilla   deacuerdo  al riesgo que tenga el paciente"]
[null,7,"Se diligencia el tablero de cabecera con los nombres y apellidos completos, numero de identificaciòn y el riesgo que tiene el paciente"]
[null,8,"Existe en la estación de enfermería el listado completo de los usuarios en el servicio, con nombres y apellidos completos. "]
[null,9,"En  el momento que el  personal asistencial aborda al paciente,lo llama por su nombre (Saludo, entrega de turno, entre otras)"]
[null,"SUBTOTAL",{"$nulls":3},{"$f":"COUNTIF(F15:F19,\"X\")","v":0},{"$f":"COUNTIF(G15:G19,\"X\")","v":0},{"$f":"COUNTIF(H15:H19,\"X\")","v":0}]
["EGRESO DEL PACIENTE",10,"Se elimina  la informacion del tablero de cabecera en el momento del egreso"]
["SUBTOTAL",{"$nulls":4},{"$f":"COUNTIF(F21:F21,\"X\")","v":0},{"$f":"COUNTIF(G21:G21,\"X\")","v":0},{"$f":"COUNTIF(H21:H21,\"X\")","v":0}]
["TRASLADO DEL PACIENTE ",11,"Cuando se va a realizar algún procedimiento al paciente (Como traslado, toma de muestras,  ecografías, entre otros se corrobora su identificación con el nombre completo, dos nombres dos apellidos e identificación"]
[null,12,"El personal que traslada el paciente corrobora la informacion de la manilla, tablero y paciente."]
[null,13,"El personal que recibe al paciente corrobora la informacion entregada"]
["SUBTOTAL",{"$nulls":4},{"$f":"COUNTIF(F23:F25,\"X\")","v":0},{"$f":"COUNTIF(G23:G25,\"X\")","v":0},{"$f":"COUNTIF(H23:H25,\"X\")","v":0}]
[]
[null,"NÚMERO DE CRITERIOS","NUMERO DE ITEMS","NUMERO DE ITEMS","NUMERO DE ITEMS",{"$f":"SUM(F14+F20+F22+F26)","v":0},{"$f":"SUM(G14+G20+G22+G26)","v":0},{"$f":"SUM(H14+H20+H22+H26)","v":0}]
[null,"% CUMPLIMIENTO","% CUMPLIMIENTO","% CUMPLIMIENTO","% CUMPLIMIENTO",{"$f":"F28/(SUM(F28+G28))","v":{"$error":"#DIV/0!"}}]
[]
["EVALUACIÓN"]
["OPTIMA",null,"mayor  de 95%","mayor  de 95%","mayor  de 95%"]
["ADECUADA",null,"85.1%  a   95%","85.1%  a   95%","85.1%  a   95%"]
["ACEPTABLE ",null,"70.1%  a   85%","70.1%  a   85%","70.1%  a   85%"]
["DEFICIENTE",null,"55.1%  a   70%","55.1%  a   70%","55.1%  a   70%"]
["INACEPTABLE",null,"menor del 55%","menor del 55%","menor del 55%"]
[]
[]
[]
[]
[]
[]
[{"$nulls":3},"NOMBRE Y  FIRMA DEL AUDITOR"]

{"sheet":"Para Tabular Hospitalario.","index":1,"n_rows":39,"n_cols":43,"rows_kept":39,"merged":[[0,0,3,0],[0,1,0,32],[1,1,3,32],[3,33,3,34],[4,0,4,34],[5,0,5,34],[6,0,8,0],[6,1,8,1],[6,2,8,2],[6,3,8,3],[6,4,8,4],[6,5,6,8],[6,11,8,11],[6,12,6,16],[6,19,8,19],[6,23,8,23],[6,24,6,26],[6,29,8,29],[6,30,8,30],[6,31,8,31],[6,32,8,32],[6,33,8,34],[7,9,8,9],[7,10,8,10],[7,17,8,17],[7,18,8,18],[7,21,8,21],[7,22,8,22],[7,27,8,27],[7,28,8,28],[9,33,9,34],[10,33,10,34],[11,33,11,34],[12,33,12,34],[13,33,13,34],[14,33,14,34],[15,33,15,34],[16,33,16,34],[17,33,17,34],[18,33,18,34],[19,33,19,34],[20,33,20,34],[21,33,21,34],[22,33,22,34],[23,33,23,34],[24,33,24,34],[25,33,25,34],[26,33,26,34],[27,33,27,34],[28,33,28,34],[29,33,29,34],[30,33,30,34],[31,33,31,34],[32,33,32,34],[33,33,33,34],[34,33,34,34],[35,33,35,34],[36,33,36,34],[37,33,37,34],[38,33,38,34]]}
[null,"FORMATO",{"$nulls":31},"CODIGO","GC-S4-F10"]
[null,"  BASE DE DATOS LISTA DE CHEQUEO IDENTIFICACIÓN DE PACIENTE HOSPITALARIO",{"$nulls":31},"VERSIÓN",4,{"$nulls":7},1]
[{"$nulls":33},"VIGENCIA","2022-01-05",{"$nulls":7},2]
[{"$nulls":33},"PAGINA 2 DE 5 ",{"$nulls":8},3]
[]
["NOTA: Los criterios a evaluación corresponden :1 (C ) CUMPLE- 2 (NC) NO CUMPLE-3 (NA) NO APLICA"]
["MES","FECHA","SEDE","SERVICIO","PROFESIONAL","GENERALIDADES ",{"$nulls":5},"TOTAL 1","INGRESO DEL PACIENTE ",{"$nulls":6},"TOTAL 2","EGRESO DEL PACIENTE",null,null,"TOTAL 3","TRASLADO DEL PACIENTE",{"$nulls":4},"TOTAL 4","N° CRITERIOS CUMPLIDOS","N° CRITERIOS EVALUADOS","% CUMPLIMIENTO GLOBAL ","OBSERVACIONES "]
[{"$nulls":5},1,2,3,4,"TOTAL DE CRITERIOS CUMPLIDOS","TOTAL DE CRITERIOS EVALUADOS",null,5,6,7,8,9,"TOTAL DE CRITERIOS CUMPLIDOS","TOTAL DE CRITERIOS EVALUADOS",null,10,"TOTAL DE CRITERIOS CUMPLIDOS","TOTAL DE CRITERIOS EVALUADOS",null,11,12,13,"TOTAL DE CRITERIOS CUMPLIDOS","TOTAL DE CRITERIOS EVALUADOS"]
[{"$nulls":5},"Está disponible en el servicio el protocolo de identificacion del paciente","Conoce el personal el protocolo de identificacion de paciente","Existe disponibilidad permanente de manillas  para identificaciòn de paciente.","Existe tablero de cabecera con identificación completa del usuario (nombres y apellidos completos, número de identificación del paciente y riesgo)",{"$nulls":3},"El usuario está identificado en el servicio hospitalario con manilla y esta contiene: nombres y apellidos completos, número de identidad, servicio y riesgo ","Se asigna el color de la manilla   deacuerdo  al riesgo que tenga el paciente","Se diligencia el tablero de cabecera con los nombres y apellidos completos, numero de identificaciòn y el riesgo que tiene el paciente","Existe en la estación de enfermería el listado completo de los usuarios en el servicio, con nombres y apellidos completos. ","En  el momento que el  personal asistencial aborda al paciente,lo llama por su nombre (Saludo, entrega de turno, entre otras)",{"$nulls":3},"Se retira la manilla del paciente en el momento del egreso",{"$nulls":3},"Cuando se va a realizar algún procedimiento al paciente (Como traslado, toma de muestras,  ecografías, entre otros se corrobora su identificación con el nombre completo, dos nombres dos apellidos e identificación","El personal que traslada el paciente corrobora la informacion de la manilla, tablero y paciente.","El personal que recibe al paciente corrobora la informacion entregada"]
[{"$nulls":9},{"$f":"COUNTIF(F10:I10,1)","v":0},{"$f":"COUNTIF(F10:I10,1)+COUNTIF(F10:I10,2)","v":0},{"$f":"IFERROR(J10/K10,0)","v":{"v":0,"d":"0%"}},{"$nulls":5},{"$f":"COUNTIF(M10:Q10,1)","v":0},{"$f":"COUNTIF(M10:Q10,1)+COUNTIF(M10:Q10,2)","v":0},{"$f":"IFERROR(R10/S10,0)","v":{"v":0,"d":"0%"}},null,{"$f":"COUNTIF(U10:U10,1)","v":0},{"$f":"COUNTIF(U10:U10,1)+COUNTIF(U10:U10,2)","v":0},{"$f":"IFERROR(V10/W10,0)","v":{"v":0,"d":"0%"}},{"$nulls":3},{"$f":"COUNTIF(Y10:AA10,1)","v":0},{"$f":"COUNTIF(Y10:AA10,1)+COUNTIF(Y10:AA10,2)","v":0},{"$f":"IFERROR(AB10/AC10,0)","v":{"v":0,"d":"0%"}},{"$f":"SUM(J10+R10+V10+AB10)","v":0},0,{"$f":"AE10/AF10","v":{"$error":"#DIV/0!"}}]
[{"$nulls":9},0,0,{"$f":"IFERROR(J11/K11,0)","v":{"v":0,"d":"0%"}},{"$nulls":5},0,0,{"$f":"IFERROR(R11/S11,0)","v":{"v":0,"d":"0%"}},null,0,0,{"$f":"IFERROR(V11/W11,0)","v":{"v":0,"d":"0%"}},{"$nulls":3},{"$f":"COUNTIF(Y11:AA11,1)","v":0},{"$f":"COUNTIF(Y11:AA11,1)+COUNTIF(Y11:AA11,2)","v":0},{"$f":"IFERROR(AB11/AC11,0)","v":{"v":0,"d":"0%"}},0,0,{"$f":"AE11/AF11","v":{"$error":"#DIV/0!"}}]
[{"$nulls":9},0,0,{"v":0,"d":"0%"},{"$nulls":5},0,0,{"v":0,"d":"0%"},null,0,0,{"v":0,"d":"0%"},{"$nulls":3},0,0,{"v":0,"d":"0%"},0,0,{"$error":"#DIV/0!"}]
[{"$nulls":9},0,0,{"v":0,"d":"0%"},{"$nulls":5},0,0,{"v":0,"d":"0%"},null,0,0,{"v":0,"d":"0%"},{"$nulls":3},0,0,{"v":0,"d":"0%"},0,0,{"$error":"#DIV/0!"}]
[{"$nulls":9},0,0,{"v":0,"d":"0%"},{"$nulls":5},0,0,{"v":0,"d":"0%"},null,0,0,{"v":0,"d":"0%"},{"$nulls":3},0,0,{"v":0,"d":"0%"},0,0,{"$error":"#DIV/0!"}]
[{"$nulls":9},0,0,{"v":0,"d":"0%"},{"$nulls":5},0,0,{"v":0,"d":"0%"},null,0,0,{"v":0,"d":"0%"},{"$nulls":3},0,0,{"v":0,"d":"0%"},0,0,{"$error":"#DIV/0!"}]
[{"$nulls":9},0,0,{"v":0,"d":"0%"},{"$nulls":5},0,0,{"v":0,"d":"0%"},null,0,0,{"v":0,"d":"0%"},{"$nulls":3},0,0,{"v":0,"d":"0%"},0,0,{"$error":"#DIV/0!"}]
[{"$nulls":9},0,0,{"v":0,"d":"0%"},{"$nulls":5},0,0,{"v":0,"d":"0%"},null,0,0,{"v":0,"d":"0%"},{"$nulls":3},0,0,{"v":0,"d":"0%"},0,0,{"$error":"#DIV/0!"}]
[{"$nulls":9},0,0,{"v":0,"d":"0%"},{"$nulls":5},0,0,{"v":0,"d":"0%"},null,0,0,{"v":0,"d":"0%"},{"$nulls":3},0,0,{"v":0,"d":"0%"},0,0,{"$error":"#DIV/0!"}]
[{"$nulls":9},0,0,{"v":0,"d":"0%"},{"$nulls":5},0,0,{"v":0,"d":"0%"},null,0,0,{"v":0,"d":"0%"},{"$nulls":3},0,0,{"v":0,"d":"0%"},0,0,{"$error":"#DIV/0!"}]
[{"$nulls":9},0,0,{"v":0,"d":"0%"},{"$nulls":5},0,0,{"v":0,"d":"0%"},null,0,0,{"v":0,"d":"0%"},{"$nulls":3},0,0,{"v":0,"d":"0%"},0,0,{"$error":"#DIV/0!"},{"$nulls":3},1,"CANAIMA","URGENCIAS","JEFE DE  ENEFERMERÍA",1]
[{"$nulls":9},0,0,{"v":0,"d":"0%"},{"$nulls":5},0,0,{"v":0,"d":"0%"},null,0,0,{"v":0,"d":"0%"},{"$nulls":3},0,0,{"v":0,"d":"0%"},0,0,{"$error":"#DIV/0!"},{"$nulls":3},2,"IPC","CONSULTA EXTERNA","AUXILIAR DE LABORATORIO",2]
[{"$nulls":9},0,0,{"v":0,"d":"0%"},{"$nulls":5},0,0,{"v":0,"d":"0%"},null,0,0,{"v":0,"d":"0%"},{"$nulls":3},0,0,{"v":0,"d":"0%"},0,0,{"$error":"#DIV/0!"},{"$nulls":3},3,"EDUARDO SANTOS","RAYOS X","MÉDICO",3]
[{"$nulls":9},0,0,{"v":0,"d":"0%"},{"$nulls":5},0,0,{"v":0,"d":"0%"},null,0,0,{"v":0,"d":"0%"},{"$nulls":3},0,0,{"v":0,"d":"0%"},0,0,{"$error":"#DIV/0!"},{"$nulls":4},"SIETE DE AGOSTO","VACUNACIÓN","AUXILIAR DE ENFERMERÍA"]
[{"$nulls":9},0,0,{"v":0,"d":"0%"},{"$nulls":5},0,0,{"v":0,"d":"0%"},null,0,0,{"v":0,"d":"0%"},{"$nulls":3},0,0,{"v":0,"d":"0%"},0,0,{"$error":"#DIV/0!"},{"$nulls":4},"PALMAS","ODONTOLOGÍA","ESTUDIANTE DE ENFERMERÍA"]
[{"$nulls":9},0,0,{"v":0,"d":"0%"},{"$nulls":5},0,0,{"v":0,"d":"0%"},null,0,0,{"v":0,"d":"0%"},{"$nulls":3},0,0,{"v":0,"d":"0%"},0,0,{"$error":"#DIV/0!"},{"$nulls":4},"CAGUAN","HOSPITALIZACIÓN","ESTUDIANTE  AUXILIAR DE ENFERMERÍA"]
[{"$nulls":9},0,0,{"v":0,"d":"0%"},{"$nulls":5},0,0,{"v":0,"d":"0%"},null,0,0,{"v":0,"d":"0%"},{"$nulls":3},0,0,{"v":0,"d":"0%"},0,0,{"$error":"#DIV/0!"},{"$nulls":4},"SAN LUIS","LABORATORIO","ESTUDIANTE  DE MEDICINA"]
[{"$nulls":9},0,0,{"v":0,"d":"0%"},{"$nulls":5},0,0,{"v":0,"d":"0%"},null,0,0,{"v":0,"d":"0%"},{"$nulls":3},0,0,{"v":0,"d":"0%"},0,0,{"$error":"#DIV/0!"},{"$nulls":4},"FORTALECILLAS","FARMACIA"]
[{"$nulls":9},0,0,{"v":0,"d":"0%"},{"$nulls":5},0,0,{"v":0,"d":"0%"},null,0,0,{"v":0,"d":"0%"},{"$nulls":3},0,0,{"v":0,"d":"0%"},0,0,{"$error":"#DIV/0!"},{"$nulls":4},"VEGALARGA","PYP"]
[{"$nulls":9},0,0,{"v":0,"d":"0%"},{"$nulls":5},0,0,{"v":0,"d":"0%"},null,0,0,{"v":0,"d":"0%"},{"$nulls":3},0,0,{"v":0,"d":"0%"},0,0,{"$error":"#DIV/0!"},{"$nulls":4},"GRANJAS","IMAGENOLOGÍA"]
[{"$nulls":9},0,0,{"v":0,"d":"0%"},{"$nulls":5},0,0,{"v":0,"d":"0%"},null,0,0,{"v":0,"d":"0%"},{"$nulls":3},0,0,{"v":0,"d":"0%"},0,0,{"$error":"#DIV/0!"},{"$nulls":5},"ECOGRAFÍA"]
[{"$nulls":9},0,0,{"v":0,"d":"0%"},{"$nulls":5},0,0,{"$f":"IFERROR(R31/S31,0)","v":{"v":0,"d":"0%"}},null,0,0,{"v":0,"d":"0%"},{"$nulls":3},0,0,{"v":0,"d":"0%"},0,0,{"$error":"#DIV/0!"},{"$nulls":5},"CITOLOGÍA"]
[{"$nulls":9},0,0,{"v":0,"d":"0%"},{"$nulls":5},0,0,{"v":0,"d":"0%"},null,0,0,{"v":0,"d":"0%"},{"$nulls":3},0,0,{"v":0,"d":"0%"},0,0,{"$error":"#DIV/0!"},{"$nulls":5},"PSICOLOGÍA"]
[{"$nulls":9},0,0,{"v":0,"d":"0%"},{"$nulls":5},0,0,{"v":0,"d":"0%"},null,0,0,{"v":0,"d":"0%"},{"$nulls":3},0,0,{"v":0,"d":"0%"},0,0,{"$error":"#DIV/0!"}]
[{"$nulls":9},0,0,{"v":0,"d":"0%"},{"$nulls":5},0,0,{"v":0,"d":"0%"},null,0,0,{"v":0,"d":"0%"},{"$nulls":3},0,0,{"v":0,"d":"0%"},0,0,{"$error":"#DIV/0!"}]
[{"$nulls":9},0,0,{"v":0,"d":"0%"},{"$nulls":5},0,0,{"v":0,"d":"0%"},null,0,0,{"v":0,"d":"0%"},{"$nulls":3},0,0,{"v":0,"d":"0%"},0,0,{"$error":"#DIV/0!"}]
[{"$nulls":9},0,0,{"v":0,"d":"0%"},{"$nulls":5},0,0,{"v":0,"d":"0%"},null,0,0,{"v":0,"d":"0%"},{"$nulls":3},0,0,{"v":0,"d":"0%"},0,0,{"$error":"#DIV/0!"}]
[{"$nulls":9},0,0,{"v":0,"d":"0%"},{"$nulls":5},0,0,{"v":0,"d":"0%"},null,0,0,{"v":0,"d":"0%"},{"$nulls":3},0,0,{"v":0,"d":"0%"},0,0,{"$error":"#DIV/0!"}]
[{"$nulls":9},0,0,{"v":0,"d":"0%"},{"$nulls":5},0,0,{"v":0,"d":"0%"},null,0,0,{"v":0,"d":"0%"},{"$nulls":3},0,0,{"v":0,"d":"0%"},0,0,{"$error":"#DIV/0!"}]
[{"$nulls":9},0,0,{"v":0,"d":"0%"},{"$nulls":5},0,0,{"v":0,"d":"0%"},null,0,0,{"v":0,"d":"0%"},{"$nulls":3},0,0,{"v":0,"d":"0%"},0,0,{"$error":"#DIV/0!"}]

{"sheet":"Ident. paciente Ambulatorio","index":2,"n_rows":63,"n_cols":12,"rows_kept":63,"merged":[[0,0,3,0],[0,1,0,9],[1,1,3,9],[3,10,3,11],[4,0,4,11],[5,0,5,2],[5,3,5,5],[5,6,5,8],[5,9,5,11],[6,0,6,11],[7,0,8,0],[7,1,8,1],[7,2,8,4],[7,5,7,7],[7,8,8,11],[9,0,11,0],[9,2,9,4],[9,8,9,11],[10,2,10,4],[10,8,10,11],[11,1,11,4],[11,8,11,11],[12,0,16,0],[12,2,12,4],[12,8,12,11],[13,2,13,4],[13,8,13,11],[14,2,14,4],[14,8,14,11],[15,2,15,4],[15,8,15,11],[16,1,16,4],[17,0,22,0],[17,2,17,4],[17,8,17,11],[18,2,18,4],[18,8,18,11],[19,2,19,4],[19,8,19,11],[20,2,20,4],[20,8,20,11],[21,2,21,4],[21,8,21,11],[22,1,22,4],[22,8,22,11],[23,0,28,0],[23,2,23,4],[23,8,23,11],[24,2,24,4],[24,8,24,11],[25,2,25,4],[25,8,25,11],[26,2,26,4],[26,8,26,11],[27,2,27,4],[27,8,27,11],[28,1,28,4],[28,8,28,11],[29,0,35,0],[29,2,29,4],[29,8,29,11],[30,2,30,4],[30,8,30,11],[31,2,31,4],[31,8,31,11],[32,2,32,4],[32,8,32,11],[33,2,33,4],[33,8,33,11],[34,2,34,4],[34,8,34,11],[35,1,35,4],[35,8,35,11],[36,0,42,0],[36,2,36,4],[36,8,36,11],[37,2,37,4],[37,8,37,11],[38,2,38,4],[38,8,38,11],[39,2,39,4],[39,8,39,11],[40,2,40,4],[40,8,40,11],[41,2,41,4],[41,8,41,11],[42,2,42,4],[42,8,42,11],[43,0,43,4],[43,8,43,11],[44,0,47,0],[44,2,44,4],[44,8,44,11],[45,2,45,4],[45,8,45,11],[46,2,46,4],[46,8,46,11],[47,2,47,4],[47,8,47,11],[48,0,48,4],[48,8,48,11],[50,1,50,4],[51,1,51,4],[51,5,51,7],[53,0,53,4],[54,0,54,1],[54,2,54,4],[55,0,55,1],[55,2,55,4],[56,0,56,1],[56,2,56,4],[57,0,57,1],[57,2,57,4],[58,0,58,1],[58,2,58,4],[61,3,61,9],[62,3,62,9]]}
[null,"FORMATO",{"$nulls":8},"CODIGO","GC-S4-F10"]
[null," BASE DE DATOS LISTA DE CHEQUEO IDENTIFICACION DE PACIENTE AMBULATORIO",{"$nulls":8},"VERSIÓN",4]
[{"$nulls":10},"VIGENCIA","2022-01-05"]
[{"$nulls":10},"PAGINA 3 DE 5 "]
["OBJETIVO:"]
["SEDE:",null,null,"SERVICIO:",null,null,"FECHA:",null,null,"TURNO:  M___  T___ N___"]
[]
["ASPECTO ","No.","CRITERIO",null,null,"CUMPLIMIENTO",null,null,"OBSERVACIONES"]
[{"$nulls":5},"C","NC","NA"]
["GENERALIDADES",1,"Está disponible en el servicio el protocolo de identificacion del paciente"]
[null,2,"Conoce el personal el protocolo de identificacion de paciente"]
[null,"SUBTOTAL",{"$nulls":3},{"$f":"COUNTIF(F10:F11,\"x\")","v":0},{"$f":"COUNTIF(G10:G11,\"x\")","v":0},{"$f":"COUNTIF(H10:H11,\"x\")","v":0}]
["ADMINISTRATIVO",3,"Corrobora verbalmente los datos del paciente: nombres y apellidos completos del paciente (dos, si los tiene), el tipo de documento de identificación y el número, el sexo, la fecha de nacimiento, la edad, el lugar de residencia habitual y su número telefónico."]
[null,4,"Solicitar el documento de identificación."]
[null,5,"Verificar en las bases de datos la seguridad social."]
[null,6,"Reafirmar con el usuario y/o acompañante su identificación."]
[null,"SUBTOTAL",{"$nulls":3},{"$f":"COUNTIF(F13:F16,\"x\")","v":0},{"$f":"COUNTIF(G13:G16,\"x\")","v":0},0]
["MEDICINA-ENFERMERÍA",7,"Se realiza el llamado del paciente por el alta voz por los dos nombres y los dos apellidos. (Auxiliar de enfermería)"]
[null,8,"Al ingresar al servicio se hace la verificaciòn del paciente antes de realizar el procedimiento (se verifica  orden mèdica, factura si aplica  versus informaciòn que brinda el paciente con dos nombres y dos apellidos , mas la identificaciòn del mismo) (Médico o auxiliar de enfermería)"]
[null,9,"Se realiza la presentaciòn del funcionario que va a relizar la antenciòn del mismo (Médico o Auxiliar de enfermería)"," Se solicita a  los familiares que salgan de la Habitación "," Se solicita a  los familiares que salgan de la Habitación "]
[null,10,"El profesional médico verifica previo a iniciar la atenciòn que corresponde al paciente."]
[null,11,"Si se evidencia que el paciente no corresponde se solicita apoyo por  el area administrativa (con el fin de generar la identificaciòn correcta del paciente)"," Se  entrega al paciente en la unidad,  y esta se encuentra limpia y en orden. "," Se  entrega al paciente en la unidad,  y esta se encuentra limpia y en orden. "]
[null,"SUBTOTAL",{"$nulls":3},{"$f":"COUNTIF(F18:F22,\"X\")","v":0},{"$f":"COUNTIF(G18:G22,\"X\")","v":0},{"$f":"COUNTIF(H18:H22,\"X\")","v":0}]
["ODONTOLOGIA",12,"Se realiza el llamado del paciente por el alta voz por los dos nombres y los dos apellidos. (Auxiliar de odontología)"]
[null,13,"Al ingresar al servicio se hace la verificaciòn del paciente antes de realizar el procedimiento (se verifica  orden mèdica, factura si aplica  versus informaciòn que brinda el paciente con dos nombres y dos apellidos , mas la identificaciòn del mismo) (Auxiliar de Odontologia)"]
[null,14,"Se realiza la presentaciòn del funcionario que va a relizar la antenciòn del mismo (Odontólogo)"]
[null,15,"El profesional Odontólogo verifica previo a iniciar la atenciòn que corresponde al paciente"]
[null,16,"Si se evidencia que el paciente no corresponde se solicita apoyo por  el area administrativa (con el fin de generar la identificaciòn correcta del paciente)"]
[null,"SUBTOTAL",{"$nulls":3},{"$f":"COUNTIF(F24:F28,\"X\")","v":0},{"$f":"COUNTIF(G24:G28,\"X\")","v":0},{"$f":"COUNTIF(H24:H28,\"X\")","v":0}]
["CITOLOGIAS",17,"Se realiza el llamado del paciente por el alta voz por los dos nombres y los dos apellidos. (Jefe de enfermería)"]
[null,18,"Al ingresar al servicio se hace la verificaciòn del paciente antes de realizar el procedimiento (se verifica  orden mèdica, factura si aplica  versus informaciòn que brinda el paciente con dos nombres y dos apellidos , mas la identificaciòn del mismo) (Jefe de Enfermería)"]
[null,19,"Se realiza la presentaciòn del funcionario que va a relizar la antenciòn del mismo (Jefe de Enfermería)"]
[null,20,"Si se evidencia que el paciente no corresponde se solicita apoyo por  el area administrativa (con el fin de generar la identificaciòn correcta del paciente)"]
[null,21,"Se diligencia el formato de la historia clínica con los siguientes datos: \nNombre y apellidos completos\nNumero de documento de identificación y tipo\ndirección de residencia, número telefónico, ciudad\ntipo de afiliación\nedad con fecha de nacimiento\nfecha de ultima menstruación\nnúmero de abortos\nfecha de ultima citología\nedad de primera relación sexual\nnúmero de partos, numero de gestaciones\nresultado de ultima citología\nfecha de ultimo parto\nsi está embarazada o no, método de planificación, procedimientos realizados en el cuello. (Enfermera)"]
[null,22,"Una vez diligenciado el formato con los datos iníciales y revisado que todos los elementos para la toma de muestras de citologías estén completos, se realizara la rotulación de la lamina con las letras iníciales del nombre y apellidos de la usuaria y el numero de cedula del paciente. No se deben rotular las láminas sobre esparadrapo ni con lápiz de cera. (Enfermera)"]
[null,"SUBTOTAL",{"$nulls":3},{"$f":"COUNTIF(F30:F35,\"X\")","v":0},{"$f":"COUNTIF(G30:G35,\"X\")","v":0},{"$f":"COUNTIF(H30:H35,\"X\")","v":0}]
["LABORATORIO CLINICO",23,"Llama al usuario por sus dos nombres y apellidos completos anteponiendo el título de señor o señora, presentándose y explicando el procedimientoa a seguir para tomar los exámenes. (Auxiliar de laboratorio o Bacterióloga)"]
[null,24,"Verifica la solicitud y corrobora que la información sea legible y que corresponda al usuario. (Bacterióloga o auxiliar de laboratorio)"]
[null,25,"Verifica también que los exámenes anotados en la factura producida por el sistema coinciden con los exámenes solicitados en la orden del médico. (Bacterióloga o auxiliar de laboratorio)"]
[null,26,"Ingresa el usuario en el software de laboratorio, activando el módulo de toma de muestras. (Bacterióloga o auxiliar de laboratorio)"]
[null,27,"Toma la muestra por venopunción siguiendo lo establecido en el procedimiento de toma de muestras. Imprime y colocar el sticker correspondiente. (Bacterióloga o auxiliar de laboratorio)"]
[null,28,"Verifica que los datos contenidos en el sticker correspondan (nombre completo, número de identificación y exámenes solicitados). (Bacterióloga o auxiliar de laboratorio)"]
[null,29,"Si se evidencia que el paciente no corresponde se solicita apoyo por  el area administrativa (con el fin de generar la identificaciòn correcta del paciente)"]
["SUBTOTAL",{"$nulls":4},{"$f":"COUNTIF(F37:F43,\"X\")","v":0},{"$f":"COUNTIF(G37:G43,\"X\")","v":0},{"$f":"COUNTIF(H37:H43,\"X\")","v":0}]
["IMAGENOLOGIA",30,"Se realiza el llamado del paciente por el alta voz por los dos nombres y los dos apellidos. (Técnico de Rx)"]
[null,31,"Al ingresar al servicio se hace la verificaciòn del paciente antes de realizar el procedimiento (se verifica  orden mèdica, factura si aplica  versus informaciòn que brinda el paciente con dos nombres y dos apellidos , mas la identificaciòn del mismo) (Técnico de Rx)"]
[null,32,"Se realiza la presentaciòn del funcionario que va a relizar la antenciòn del mismo (Jefe de Enfermería)"]
[null,33,"Si se evidencia que el paciente no corresponde se solicita apoyo al area administrativa (con el fin de generar la identificaciòn correcta del paciente)"]
["SUBTOTAL",{"$nulls":4},{"$f":"COUNTIF(F45:F48,\"X\")","v":0},{"$f":"COUNTIF(G45:G48,\"X\")","v":0},{"$f":"COUNTIF(H45:H48,\"X\")","v":0}]
[]
[null,"NÚMERO DE CRITERIOS","NUMERO DE ITEMS","NUMERO DE ITEMS","NUMERO DE ITEMS",{"$f":"SUM(F12+F23+F29+F36+F44+F49)","v":0},{"$f":"SUM(G12+G23+G29+G36+G44+G49)","v":0},{"$f":"SUM(H12+H23+H29+H36+H44+H49)","v":0}]
[null,"% CUMPLIMIENTO","% CUMPLIMIENTO","% CUMPLIMIENTO","% CUMPLIMIENTO",{"$f":"F51/(SUM(F51+G51))","v":{"$error":"#DIV/0!"}}]
[]
["EVALUACIÓN"]
["OPTIMA",null,"mayor  de 95%","mayor  de 95%","mayor  de 95%"]
["ADECUADA",null,"85.1%  a   95%","85.1%  a   95%","85.1%  a   95%"]
["ACEPTABLE ",null,"70.1%  a   85%","70.1%  a   85%","70.1%  a   85%"]
["DEFICIENTE",null,"55.1%  a   70%","55.1%  a   70%","55.1%  a   70%"]
["INACEPTABLE",null,"menor del 55%","menor del 55%","menor del 55%"]
[]
[]
[]
[{"$nulls":3},"NOMBRE Y  FIRMA DEL AUDITOR"]

{"sheet":"Para tabular Ambulatorio.","index":3,"n_rows":39,"n_cols":73,"rows_kept":39,"merged":[[0,0,3,0],[0,1,0,61],[1,1,3,61],[3,62,3,63],[4,0,4,63],[5,0,5,63],[6,0,8,0],[6,1,8,1],[6,2,8,2],[6,3,8,3],[6,4,8,4],[6,5,6,8],[6,9,8,9],[6,10,6,15],[6,16,8,16],[6,17,6,23],[6,24,8,24],[6,25,6,31],[6,32,8,32],[6,33,6,40],[6,41,8,41],[6,42,6,50],[6,51,8,51],[6,52,6,57],[6,58,8,58],[6,59,8,59],[6,60,8,60],[6,61,8,61],[6,62,8,63],[7,7,8,7],[7,8,8,8],[7,14,8,14],[7,15,8,15],[7,22,8,22],[7,23,8,23],[7,30,8,30],[7,31,8,31],[7,39,8,39],[7,40,8,40],[7,49,8,49],[7,50,8,50],[7,56,8,56],[7,57,8,57],[9,62,9,63],[10,62,10,63],[11,62,11,63],[12,62,12,63],[13,62,13,63],[14,62,14,63],[15,62,15,63],[16,62,16,63],[17,62,17,63],[18,62,18,63],[19,62,19,63],[20,62,20,63],[21,62,21,63],[22,62,22,63],[23,62,23,63],[24,62,24,63],[25,62,25,63],[26,62,26,63],[27,62,27,63],[28,62,28,63],[29,62,29,63],[30,62,30,63],[31,62,31,63],[32,62,32,63],[33,62,33,63],[34,62,34,63],[35,62,35,63],[36,62,36,63],[37,62,37,63],[38,62,38,63]]}
[null,"FORMATO",{"$nulls":60},"CODIGO","GC-S4-F10"]
[null," BASE DE DATOS LISTA DE CHEQUEO IDENTIFICACIÓN DE PACIENTE AMBULATORIO",{"$nulls":60},"VERSIÓN",4]
[{"$nulls":62},"VIGENCIA","2022-01-05"]
[{"$nulls":62},"PAGINA 4 DE 5 "]
[]
["NOTA: Los criterios a evaluación corresponden :1 (C ) CUMPLE- 2 (NC) NO CUMPLE-3 (NA) NO APLICA"]
["MES","FECHA","SEDE","SERVICIO","PROFESIONAL","GENERALIDADES",{"$nulls":3},"TOTAL 1","ADMINISTRATIVO",{"$nulls":5},"TOTAL 2","MEDICINA-ENFERMERÍA",{"$nulls":6},"TOTAL 3","ODONTOLOGIA",{"$nulls":6},"TOTAL 4","CITOLOGIAS",{"$nulls":7},"TOTAL 5","LABORATORIO CLINICO",{"$nulls":8},"TOTAL 6","IMAGENOLOGIA",{"$nulls":5},"TOTAL 7","N° CRITERIOS CUMPLIDOS","N° CRITERIOS EVALUADOS","% CUMPLIMIENTO GLOBAL ","OBSERVACIONES "]
[{"$nulls":5},1,2,"TOTAL DE CRITERIOS CUMPLIDOS","TOTAL DE CRITERIOS EVALUADOS",null,3,4,5,6,"TOTAL DE CRITERIOS CUMPLIDOS","TOTAL DE CRITERIOS EVALUADOS",null,7,8,9,10,11,"TOTAL DE CRITERIOS CUMPLIDOS","TOTAL DE CRITERIOS EVALUADOS",null,12,13,14,15,16,"TOTAL DE CRITERIOS CUMPLIDOS","TOTAL DE CRITERIOS EVALUADOS",null,17,18,19,20,21,22,"TOTAL DE CRITERIOS CUMPLIDOS","TOTAL DE CRITERIOS EVALUADOS",null,23,24,25,26,27,28,29,"TOTAL DE CRITERIOS CUMPLIDOS","TOTAL DE CRITERIOS EVALUADOS",null,30,31,32,33,"TOTAL DE CRITERIOS CUMPLIDOS","TOTAL DE CRITERIOS EVALUADOS"]
[{"$nulls":5},"Está disponible en el servicio el protocolo de identificacion del paciente","Conoce el personal el protocolo de identificacion de paciente",{"$nulls":3},"Corrobora verbalmente los datos del paciente: nombres y apellidos completos del paciente (dos, si los tiene), el tipo de documento de identificación y el número, el sexo, la fecha de nacimiento, la edad, el lugar de residencia habitual y su número telefónico.","Solicitar el documento de identificación","Verificar en las bases de datos la seguridad social.","Reafirmar con el usuario y/o acompañante su identificación.",{"$nulls":3},"Se realiza el llamado del paciente por el alta voz por los dos nombres y los dos apellidos. ","Al ingresar al servicio se hace la verificaciòn del paciente antes de realizar el procedimiento (se verifica  orden mèdica, factura si aplica  versus informaciòn que brinda el paciente con dos nombres y dos apellidos , mas la identificaciòn del mismo) (Médico o auxiliar de enfermería)","Se realiza la presentaciòn del funcionario que va a relizar la antenciòn del mismo ( Médico o Auxiliar de enfermería)","El profesional médico verifica previo a iniciar la atenciòn que corresponde al paciente","Si se evidencia que el paciente no corresponde se solicita apoyo por  el área administrativa (con el fin de generar la identificaciòn correcta del paciente)",{"$nulls":3},"Se realiza el llamado del paciente por el alta voz por los dos nombres y los dos apellidos. (Auxiliar de odontología)","Al ingresar al servicio se hace la verificaciòn del paciente antes de realizar el procedimiento (se verifica  orden mèdica, factura si aplica  versus informaciòn que brinda el paciente con dos nombres y dos apellidos , mas la identificaciòn del mismo) (Auxiliar de Odontologia)","Se realiza la presentaciòn del funcionario que va a relizar la antenciòn del mismo (Odontólogo)","El profesional Odontólogo verifica previo a iniciar la atenciòn que corresponde al paciente","Si se evidencia que el paciente no corresponde se solicita apoyo por  el área administrativa (con el fin de generar la identificaciòn correcta del paciente)",{"$nulls":3},"Se realiza el llamado del paciente por el alta voz por los dos nombres y los dos apellidos. (Jefe de enfermería)","Al ingresar al servicio se hace la verificaciòn del paciente antes de realizar el procedimiento (se verifica  orden mèdica, factura si aplica  versus informaciòn que brinda el paciente con dos nombres y dos apellidos , mas la identificaciòn del mismo) (Jefe de Enfermería)","Se realiza la presentaciòn del funcionario que va a relizar la antenciòn del mismo (Jefe de Enfermería)","Si se evidencia que el paciente no corresponde se solicita apoyo por  el area administrativa (con el fin de generar la identificaciòn correcta del paciente)","Se diligencia el formato de la historia clínica con los siguientes datos: \n-Nombre y apellidos completos\n-Numero de documento de identificación y tipo. \ndirección de residencia, número telefónico,                                                                                             -Ciudad tipo de afiliación\n-Edad con fecha de nacimiento\n-Fecha de ultima menstruación\n-Número de abortos\n-Fecha de ultima citología\n-Edad de primera relación sexual\n-Número de partos, número de gestaciones\nresultado de ultima citología\n-Fecha de ultimo parto\nsi está embarazada o no, método de planificación, procedimientos realizados en el cuello. (Enfermera)","Una vez diligenciado el formato con los datos iníciales y revisado que todos los elementos para la toma de muestras de citologías estén completos, se realizara la rotulación de la lamina con las letras iníciales del nombre y apellidos de la usuaria y el numero de cedula del paciente. No se deben rotular las láminas sobre esparadrapo ni con lápiz de cera. (Enfermera)",{"$nulls":3},"Llama al usuario por sus dos nombres y apellidos completos anteponiendo el título de señor o señora, presentándose y explicando el procedimientoa a seguir para tomar los exámenes. (Auxiliar de laboratorio o Bacterióloga)","Verifica la solicitud y corrobora que la información sea legible y que corresponda al usuario. (Bacterióloga o auxiliar de laboratorio)","Verifica también que los exámenes anotados en la factura producida por el sistema coinciden con los exámenes solicitados en la orden del médico. (Bacterióloga o auxiliar de laboratorio)","Ingresa el usuario en el software de laboratorio, activando el módulo de toma de muestras. (Bacterióloga o auxiliar de laboratorio)","Toma la muestra por venopunción siguiendo lo establecido en el procedimiento de toma de muestras. Imprime y colocar el sticker correspondiente. (Bacterióloga o auxiliar de laboratorio)","Verifica que los datos contenidos en el sticker correspondan (nombre completo, número de identificación y exámenes solicitados). (Bacterióloga o auxiliar de laboratorio)","Si se evidencia que el paciente no corresponde se solicita apoyo por  el area administrativa (con el fin de generar la identificaciòn correcta del paciente",{"$nulls":3},"Se realiza el llamado del paciente por el alta voz por los dos nombres y los dos apellidos. (Técnico de Rx)","Al ingresar al servicio se hace la verificaciòn del paciente antes de realizar el procedimiento (se verifica  orden mèdica, factura si aplica  versus informaciòn que brinda el paciente con dos nombres y dos apellidos , mas la identificaciòn del mismo) (Técnico de Rx)","Se realiza la presentaciòn del funcionario que va a relizar la antenciòn del mismo (Jefe de Enfermería)","Si se evidencia que el paciente no corresponde se solicita apoyo al area administrativa (con el fin de generar la identificaciòn correcta del paciente)"]
[{"$nulls":7},{"$f":"COUNTIF(F10:G10,1)","v":0},{"$f":"COUNTIF(F10:G10,1)+COUNTIF(F10:G10,2)","v":0},{"$f":"IFERROR(H10/I10,0)","v":{"v":0,"d":"0%"}},{"$nulls":4},{"$f":"COUNTIF(K10:N10,1)","v":{"v":0,"d":"0%"}},{"$f":"COUNTIF(K10:N10,1)+COUNTIF(K10:N10,2)","v":{"v":0,"d":"0%"}},{"$f":"IFERROR(O10/P10,0)","v":{"v":0,"d":"0%"}},{"$nulls":5},{"$f":"COUNTIF(R10:V10,1)","v":0},{"$f":"COUNTIF(R10:V10,1)+COUNTIF(R10:V10,2)","v":0},{"$f":"IFERROR(W10/X10,0)","v":{"v":0,"d":"0%"}},{"$nulls":5},{"$f":"COUNTIF(Z10:AD10,1)","v":0},{"$f":"COUNTIF(Z10:AD10,1)+COUNTIF(Z10:AD10,2)","v":0},{"$f":"IFERROR(AE10/AF10,0)","v":{"v":0,"d":"0%"}},{"$nulls":6},{"$f":"COUNTIF(AH10:AM10,1)","v":0},{"$f":"COUNTIF(AH10:AM10,1)+COUNTIF(AH10:AM10,2)","v":0},{"$f":"IFERROR(AN10/AO10,0)","v":{"v":0,"d":"0%"}},{"$nulls":7},{"$f":"COUNTIF(AQ10:AW10,1)","v":0},{"$f":"COUNTIF(AQ10:AW10,1)+COUNTIF(AQ10:AW10,2)","v":0},{"$f":"IFERROR(AX10/AY10,0)","v":{"v":0,"d":"0%"}},{"$nulls":4},{"$f":"COUNTIF(BA10:BD10,1)","v":0},{"$f":"COUNTIF(BA10:BD10,1)+COUNTIF(BA10:BD10,2)","v":0},{"$f":"IFERROR(BE10/BF10,0)","v":{"v":0,"d":"0%"}},{"$f":"SUM(H10+O10+W10+AE10+AN10+AX10+BE10)","v":0},{"$f":"SUM(I10+P10+X10+AF10+AO10+AY10+BF10)","v":0},{"$f":"BH10/BI10","v":{"$error":"#DIV/0!"}},{"$nulls":10},1]
[{"$nulls":7},{"$f":"COUNTIF(F11:G11,1)","v":0},{"$f":"COUNTIF(F11:G11,1)+COUNTIF(F11:G11,2)","v":0},{"$f":"IFERROR(H11/I11,0)","v":{"v":0,"d":"0%"}},{"$nulls":4},{"$f":"COUNTIF(K11:N11,1)","v":{"v":0,"d":"0%"}},{"$f":"COUNTIF(K11:N11,1)+COUNTIF(K11:N11,2)","v":{"v":0,"d":"0%"}},{"$f":"IFERROR(O11/P11,0)","v":{"v":0,"d":"0%"}},{"$nulls":5},0,0,{"$f":"IFERROR(W11/X11,0)","v":{"v":0,"d":"0%"}},{"$nulls":5},0,0,{"$f":"IFERROR(AE11/AF11,0)","v":{"v":0,"d":"0%"}},{"$nulls":6},{"$f":"COUNTIF(AH11:AM11,1)","v":0},0,{"$f":"IFERROR(AN11/AO11,0)","v":{"v":0,"d":"0%"}},{"$nulls":7},{"$f":"COUNTIF(AQ11:AW11,1)","v":0},{"$f":"COUNTIF(AQ11:AW11,1)+COUNTIF(AQ11:AW11,2)","v":0},{"$f":"IFERROR(AX11/AY11,0)","v":{"v":0,"d":"0%"}},{"$nulls":4},{"$f":"COUNTIF(BA11:BD11,1)","v":0},{"$f":"COUNTIF(BA11:BD11,1)+COUNTIF(BA11:BD11,2)","v":0},{"$f":"IFERROR(BE11/BF11,0)","v":{"v":0,"d":"0%"}},{"$f":"SUM(H11+O11+W11+AE11+AN11+AX11+BE11)","v":0},{"$f":"SUM(I11+P11+X11+AF11+AO11+AY11+BF11)","v":0},{"$f":"BH11/BI11","v":{"$error":"#DIV/0!"}},{"$nulls":10},2]
[{"$nulls":7},0,0,{"v":0,"d":"0%"},{"$nulls":4},{"v":0,"d":"0%"},{"v":0,"d":"0%"},{"v":0,"d":"0%"},{"$nulls":5},0,0,{"v":0,"d":"0%"},{"$nulls":5},0,0,{"v":0,"d":"0%"},{"$nulls":6},0,0,{"v":0,"d":"0%"},{"$nulls":7},0,0,{"v":0,"d":"0%"},{"$nulls":4},0,0,{"v":0,"d":"0%"},0,0,{"$error":"#DIV/0!"},{"$nulls":10},3]
[{"$nulls":7},0,0,{"v":0,"d":"0%"},{"$nulls":4},{"v":0,"d":"0%"},{"v":0,"d":"0%"},{"v":0,"d":"0%"},{"$nulls":5},0,0,{"v":0,"d":"0%"},{"$nulls":5},0,0,{"v":0,"d":"0%"},{"$nulls":6},0,0,{"v":0,"d":"0%"},{"$nulls":7},0,0,{"v":0,"d":"0%"},{"$nulls":4},0,0,{"v":0,"d":"0%"},0,0,{"$error":"#DIV/0!"}]
[{"$nulls":7},0,0,{"v":0,"d":"0%"},{"$nulls":4},{"v":0,"d":"0%"},{"v":0,"d":"0%"},{"v":0,"d":"0%"},{"$nulls":5},0,0,{"v":0,"d":"0%"},{"$nulls":5},0,0,{"v":0,"d":"0%"},{"$nulls":6},0,0,{"v":0,"d":"0%"},{"$nulls":7},0,0,{"v":0,"d":"0%"},{"$nulls":4},0,0,{"v":0,"d":"0%"},0,0,{"$error":"#DIV/0!"}]
[{"$nulls":7},0,0,{"v":0,"d":"0%"},{"$nulls":4},{"v":0,"d":"0%"},{"v":0,"d":"0%"},{"v":0,"d":"0%"},{"$nulls":5},0,0,{"v":0,"d":"0%"},{"$nulls":5},0,0,{"v":0,"d":"0%"},{"$nulls":6},0,0,{"v":0,"d":"0%"},{"$nulls":7},0,0,{"v":0,"d":"0%"},{"$nulls":4},0,0,{"v":0,"d":"0%"},0,0,{"$error":"#DIV/0!"}]
[{"$nulls":7},0,0,{"v":0,"d":"0%"},{"$nulls":4},{"v":0,"d":"0%"},{"v":0,"d":"0%"},{"v":0,"d":"0%"},{"$nulls":5},0,0,{"v":0,"d":"0%"},{"$nulls":5},0,0,{"v":0,"d":"0%"},{"$nulls":6},0,0,{"v":0,"d":"0%"},{"$nulls":7},0,0,{"v":0,"d":"0%"},{"$nulls":4},0,0,{"v":0,"d":"0%"},0,0,{"$error":"#DIV/0!"}]
[{"$nulls":7},0,0,{"v":0,"d":"0%"},{"$nulls":4},{"v":0,"d":"0%"},{"v":0,"d":"0%"},{"v":0,"d":"0%"},{"$nulls":5},0,0,{"v":0,"d":"0%"},{"$nulls":5},0,0,{"v":0,"d":"0%"},{"$nulls":6},0,0,{"v":0,"d":"0%"},{"$nulls":7},0,0,{"v":0,"d":"0%"},{"$nulls":4},0,0,{"v":0,"d":"0%"},0,0,{"$error":"#DIV/0!"}]
[{"$nulls":7},0,0,{"v":0,"d":"0%"},{"$nulls":4},{"v":0,"d":"0%"},{"v":0,"d":"0%"},{"v":0,"d":"0%"},{"$nulls":5},0,0,{"v":0,"d":"0%"},{"$nulls":5},0,0,{"v":0,"d":"0%"},{"$nulls":6},0,0,{"v":0,"d":"0%"},{"$nulls":7},0,0,{"v":0,"d":"0%"},{"$nulls":4},0,0,{"v":0,"d":"0%"},0,0,{"$error":"#DIV/0!"}]
[{"$nulls":7},0,0,{"v":0,"d":"0%"},{"$nulls":4},{"v":0,"d":"0%"},{"v":0,"d":"0%"},{"v":0,"d":"0%"},{"$nulls":5},{"$f":"COUNTIF(R19:V19,1)","v":0},{"$f":"COUNTIF(R19:V19,1)+COUNTIF(R19:V19,2)","v":0},{"v":0,"d":"0%"},{"$nulls":5},0,0,{"v":0,"d":"0%"},{"$nulls":6},0,0,{"v":0,"d":"0%"},{"$nulls":7},0,0,{"v":0,"d":"0%"},{"$nulls":4},0,0,{"v":0,"d":"0%"},0,0,{"$error":"#DIV/0!"}]
[{"$nulls":7},0,0,{"v":0,"d":"0%"},{"$nulls":4},{"v":0,"d":"0%"},{"v":0,"d":"0%"},{"v":0,"d":"0%"},{"$nulls":5},0,0,{"v":0,"d":"0%"},{"$nulls":5},0,0,{"v":0,"d":"0%"},{"$nulls":6},0,0,{"v":0,"d":"0%"},{"$nulls":7},0,0,{"v":0,"d":"0%"},{"$nulls":4},0,0,{"v":0,"d":"0%"},0,0,{"$error":"#DIV/0!"},{"$nulls":3},1,"CANAIMA","URGENCIAS","AUXILIAR DE LABORATORIO"]
[{"$nulls":7},0,0,{"v":0,"d":"0%"},{"$nulls":4},{"v":0,"d":"0%"},{"v":0,"d":"0%"},{"v":0,"d":"0%"},{"$nulls":5},0,0,{"v":0,"d":"0%"},{"$nulls":5},0,0,{"v":0,"d":"0%"},{"$nulls":6},0,0,{"v":0,"d":"0%"},{"$nulls":7},0,0,{"v":0,"d":"0%"},{"$nulls":4},0,0,{"v":0,"d":"0%"},0,0,{"$error":"#DIV/0!"},{"$nulls":3},2,"IPC","CONSULTA EXTERNA","MÉDICO"]
[{"$nulls":7},0,0,{"v":0,"d":"0%"},{"$nulls":4},{"v":0,"d":"0%"},{"v":0,"d":"0%"},{"v":0,"d":"0%"},{"$nulls":5},0,0,{"v":0,"d":"0%"},{"$nulls":5},0,0,{"v":0,"d":"0%"},{"$nulls":6},0,0,{"v":0,"d":"0%"},{"$nulls":7},0,0,{"v":0,"d":"0%"},{"$nulls":4},0,0,{"v":0,"d":"0%"},0,0,{"$error":"#DIV/0!"},{"$nulls":3},3,"EDUARDO SANTOS","RAYOS X","AUXILIAR DE ENFERMERÍA"]
[{"$nulls":7},0,0,{"v":0,"d":"0%"},{"$nulls":4},{"v":0,"d":"0%"},{"v":0,"d":"0%"},{"v":0,"d":"0%"},{"$nulls":5},0,0,{"v":0,"d":"0%"},{"$nulls":5},0,0,{"v":0,"d":"0%"},{"$nulls":6},0,0,{"v":0,"d":"0%"},{"$nulls":7},0,0,{"v":0,"d":"0%"},{"$nulls":4},0,0,{"v":0,"d":"0%"},0,0,{"$error":"#DIV/0!"},{"$nulls":4},"SIETE DE AGOSTO","VACUNACIÓN","ESTUDIANTE DE ENFERMERÍA"]
[{"$nulls":7},0,0,{"v":0,"d":"0%"},{"$nulls":4},{"v":0,"d":"0%"},{"v":0,"d":"0%"},{"v":0,"d":"0%"},{"$nulls":5},0,0,{"v":0,"d":"0%"},{"$nulls":5},0,0,{"v":0,"d":"0%"},{"$nulls":6},0,0,{"v":0,"d":"0%"},{"$nulls":7},0,0,{"v":0,"d":"0%"},{"$nulls":4},0,0,{"v":0,"d":"0%"},0,0,{"$error":"#DIV/0!"},{"$nulls":4},"PALMAS","ODONTOLOGÍA","ESTUDIANTE  AUXILIAR DE ENFERMERÍA"]
[{"$nulls":7},0,0,{"v":0,"d":"0%"},{"$nulls":4},{"v":0,"d":"0%"},{"v":0,"d":"0%"},{"v":0,"d":"0%"},{"$nulls":5},0,0,{"v":0,"d":"0%"},{"$nulls":5},0,0,{"v":0,"d":"0%"},{"$nulls":6},0,0,{"v":0,"d":"0%"},{"$nulls":7},0,0,{"v":0,"d":"0%"},{"$nulls":4},0,0,{"v":0,"d":"0%"},0,0,{"$error":"#DIV/0!"},{"$nulls":4},"CAGUAN","HOSPITALIZACIÓN","ESTUDIANTE  DE MEDICINA"]
[{"$nulls":7},0,0,{"v":0,"d":"0%"},{"$nulls":4},{"v":0,"d":"0%"},{"v":0,"d":"0%"},{"v":0,"d":"0%"},{"$nulls":5},0,0,{"v":0,"d":"0%"},{"$nulls":5},0,0,{"v":0,"d":"0%"},{"$nulls":6},0,0,{"v":0,"d":"0%"},{"$nulls":7},0,0,{"v":0,"d":"0%"},{"$nulls":4},0,0,{"v":0,"d":"0%"},0,0,{"$error":"#DIV/0!"},{"$nulls":4},"SAN LUIS","LABORATORIO","ODONTOLOGO"]
[{"$nulls":7},0,0,{"v":0,"d":"0%"},{"$nulls":4},{"v":0,"d":"0%"},{"v":0,"d":"0%"},{"v":0,"d":"0%"},{"$nulls":5},0,0,{"v":0,"d":"0%"},{"$nulls":5},0,0,{"v":0,"d":"0%"},{"$nulls":6},0,0,{"v":0,"d":"0%"},{"$nulls":7},0,0,{"v":0,"d":"0%"},{"$nulls":4},0,0,{"v":0,"d":"0%"},0,0,{"$error":"#DIV/0!"},{"$nulls":4},"FORTALECILLAS","FARMACIA","OTROS"]
[{"$nulls":7},0,0,{"v":0,"d":"0%"},{"$nulls":4},{"v":0,"d":"0%"},{"v":0,"d":"0%"},{"v":0,"d":"0%"},{"$nulls":5},0,0,{"v":0,"d":"0%"},{"$nulls":5},0,0,{"v":0,"d":"0%"},{"$nulls":6},0,0,{"v":0,"d":"0%"},{"$nulls":7},0,0,{"v":0,"d":"0%"},{"$nulls":4},0,0,{"v":0,"d":"0%"},0,0,{"$error":"#DIV/0!"},{"$nulls":4},"VEGALARGA","PYP","PSICOLOGO"]
[{"$nulls":7},0,0,{"v":0,"d":"0%"},{"$nulls":4},{"v":0,"d":"0%"},{"v":0,"d":"0%"},{"v":0,"d":"0%"},{"$nulls":5},0,0,{"v":0,"d":"0%"},{"$nulls":5},0,0,{"v":0,"d":"0%"},{"$nulls":6},0,0,{"v":0,"d":"0%"},{"$nulls":7},0,0,{"v":0,"d":"0%"},{"$nulls":4},0,0,{"v":0,"d":"0%"},0,0,{"$error":"#DIV/0!"},{"$nulls":4},"GRANJAS","IMAGENOLOGÍA","AUXILIAR  DE  ODONTOLOGIA "]
[{"$nulls":7},0,0,{"v":0,"d":"0%"},{"$nulls":4},{"v":0,"d":"0%"},{"v":0,"d":"0%"},{"v":0,"d":"0%"},{"$nulls":5},0,0,{"v":0,"d":"0%"},{"$nulls":5},0,0,{"v":0,"d":"0%"},{"$nulls":6},0,0,{"v":0,"d":"0%"},{"$nulls":7},0,0,{"v":0,"d":"0%"},{"$nulls":4},0,0,{"v":0,"d":"0%"},0,0,{"$error":"#DIV/0!"},{"$nulls":5},"ECOGRAFÍA","TECNICO   RX "]
[{"$nulls":7},0,0,{"v":0,"d":"0%"},{"$nulls":4},{"v":0,"d":"0%"},{"v":0,"d":"0%"},{"v":0,"d":"0%"},{"$nulls":5},0,0,{"v":0,"d":"0%"},{"$nulls":5},0,0,{"$f":"IFERROR(AE31/AF31,0)","v":{"v":0,"d":"0%"}},{"$nulls":6},0,0,{"v":0,"d":"0%"},{"$nulls":7},0,0,{"v":0,"d":"0%"},{"$nulls":4},0,0,{"v":0,"d":"0%"},0,0,{"$error":"#DIV/0!"},{"$nulls":5},"CITOLOGÍA","FACTURADOR  "]
[{"$nulls":7},0,0,{"v":0,"d":"0%"},{"$nulls":4},{"v":0,"d":"0%"},{"v":0,"d":"0%"},{"v":0,"d":"0%"},{"$nulls":5},0,0,{"v":0,"d":"0%"},{"$nulls":5},0,0,{"v":0,"d":"0%"},{"$nulls":6},0,0,{"v":0,"d":"0%"},{"$nulls":7},0,0,{"v":0,"d":"0%"},{"$nulls":4},0,0,{"v":0,"d":"0%"},0,0,{"$error":"#DIV/0!"},{"$nulls":5},"PSICOLOGÍA","REGENTE  DE   FARMACIA "]
[{"$nulls":7},0,0,{"v":0,"d":"0%"},{"$nulls":4},{"v":0,"d":"0%"},{"v":0,"d":"0%"},{"v":0,"d":"0%"},{"$nulls":5},0,0,{"v":0,"d":"0%"},{"$nulls":5},0,0,{"v":0,"d":"0%"},{"$nulls":6},0,0,{"v":0,"d":"0%"},{"$nulls":7},0,0,{"v":0,"d":"0%"},{"$nulls":4},0,0,{"v":0,"d":"0%"},0,0,{"$error":"#DIV/0!"},{"$nulls":5},"SIAU","VIGILANTE"]
[{"$nulls":7},0,0,{"v":0,"d":"0%"},{"$nulls":4},{"v":0,"d":"0%"},{"v":0,"d":"0%"},{"v":0,"d":"0%"},{"$nulls":5},0,0,{"v":0,"d":"0%"},{"$nulls":5},0,0,{"v":0,"d":"0%"},{"$nulls":6},0,0,{"v":0,"d":"0%"},{"$nulls":7},0,0,{"v":0,"d":"0%"},{"$nulls":4},0,0,{"v":0,"d":"0%"},0,0,{"$error":"#DIV/0!"},{"$nulls":5},"FACTURACIÒN ","BACTERIOLOGA"]
[{"$nulls":7},0,0,{"v":0,"d":"0%"},{"$nulls":4},{"v":0,"d":"0%"},{"v":0,"d":"0%"},{"v":0,"d":"0%"},{"$nulls":5},0,0,{"v":0,"d":"0%"},{"$nulls":5},0,0,{"v":0,"d":"0%"},{"$nulls":6},0,0,{"v":0,"d":"0%"},{"$nulls":7},0,0,{"v":0,"d":"0%"},{"$nulls":4},0,0,{"v":0,"d":"0%"},0,0,{"$error":"#DIV/0!"},{"$nulls":5},"VIGILANCIA","VACUNADORA "]
[{"$nulls":7},0,0,{"v":0,"d":"0%"},{"$nulls":4},{"v":0,"d":"0%"},{"v":0,"d":"0%"},{"v":0,"d":"0%"},{"$nulls":5},0,0,{"v":0,"d":"0%"},{"$nulls":5},0,0,{"v":0,"d":"0%"},{"$nulls":6},0,0,{"v":0,"d":"0%"},{"$nulls":7},0,0,{"v":0,"d":"0%"},{"$nulls":4},0,0,{"v":0,"d":"0%"},0,0,{"$error":"#DIV/0!"},{"$nulls":5},"FACTURACION ","HIGIENISTA"]
[{"$nulls":7},0,0,{"v":0,"d":"0%"},{"$nulls":4},{"v":0,"d":"0%"},{"v":0,"d":"0%"},{"v":0,"d":"0%"},{"$nulls":5},0,0,{"v":0,"d":"0%"},{"$nulls":5},0,0,{"v":0,"d":"0%"},{"$nulls":6},0,0,{"v":0,"d":"0%"},{"$nulls":7},0,0,{"v":0,"d":"0%"},{"$nulls":4},0,0,{"v":0,"d":"0%"},0,0,{"$error":"#DIV/0!"}]
[{"$nulls":7},0,0,{"v":0,"d":"0%"},{"$nulls":4},{"v":0,"d":"0%"},{"v":0,"d":"0%"},{"v":0,"d":"0%"},{"$nulls":5},0,0,{"v":0,"d":"0%"},{"$nulls":5},0,0,{"v":0,"d":"0%"},{"$nulls":6},0,0,{"v":0,"d":"0%"},{"$nulls":7},0,0,{"v":0,"d":"0%"},{"$nulls":4},0,0,{"v":0,"d":"0%"},0,{"$f":"SUM(I38+P38+X38+AF38+AO38+AY38+BF38)","v":0},{"$error":"#DIV/0!"}]
[{"$nulls":7},0,0,{"v":0,"d":"0%"},{"$nulls":4},{"v":0,"d":"0%"},{"v":0,"d":"0%"},{"v":0,"d":"0%"},{"$nulls":5},0,0,{"v":0,"d":"0%"},{"$nulls":5},0,0,{"v":0,"d":"0%"},{"$nulls":6},0,0,{"v":0,"d":"0%"},{"$nulls":7},0,0,{"v":0,"d":"0%"},{"$nulls":4},0,0,{"v":0,"d":"0%"},0,0,{"$error":"#DIV/0!"}]

{"sheet":"Instructivo Med. ambulatorio","index":4,"n_rows":41,"n_cols":9,"rows_kept":41,"merged":[[0,0,3,0],[0,1,0,6],[1,1,3,6],[3,7,3,8],[4,0,4,8],[5,0,5,8],[6,0,6,8],[7,0,7,1],[7,2,7,8],[8,0,8,1],[8,2,8,8],[9,0,9,8],[10,0,10,8],[11,0,11,8],[12,0,12,1],[12,2,12,8],[13,0,13,1],[13,2,13,8],[14,0,14,1],[14,2,14,8],[15,0,15,1],[15,2,15,8],[16,0,16,8],[17,0,17,8],[18,0,18,8],[19,0,19,1],[19,2,19,8],[20,0,20,1],[20,2,20,8],[21,0,21,1],[21,2,21,8],[22,0,22,1],[22,2,22,8],[23,0,23,1],[23,2,23,8],[24,0,24,1],[24,2,24,8],[25,0,25,1],[25,2,25,8],[26,0,26,1],[26,2,26,8],[27,0,27,1],[27,2,27,8],[28,0,28,1],[28,2,28,8],[29,0,29,1],[29,2,29,8],[30,0,30,1],[30,2,30,8],[31,0,31,1],[31,2,31,8],[32,0,32,8],[33,0,33,8],[34,0,34,2],[34,3,34,5],[34,6,34,8],[35,0,35,2],[35,3,35,5],[35,6,35,8],[36,0,36,2],[36,3,36,5],[36,6,36,8],[37,0,37,2],[37,3,37,5],[37,6,37,8],[38,0,38,2],[38,3,38,5],[38,6,38,8],[39,0,39,2],[39,3,39,5],[39,6,39,8],[40,0,40,2],[40,3,40,5],[40,6,40,8]]}
[null,"FORMATO",{"$nulls":5},"CODIGO","GC-S4-F10"]
[null," BASE DE DATOS LISTA DE CHEQUEO IDENTIFICACIÓN DE PACIENTE HOSPITALARIO Y AMBULATORIO",{"$nulls":5},"VERSIÓN",4]
[{"$nulls":7},"VIGENCIA","2022-01-05"]
[{"$nulls":7},"PAGINA 5 DE 5 "]
[]
["INSTRUCTIVO PARA DILIGENCIAR EL FORMATO  \"BASE DE DATOS LISTA CHEQUEO  IDENTIFICACIÓN DE PACIENTES HOSPITALARIOS Y  AMBULATORIOS\""]
[]
["OBJETIVO:",null,"Verificar a través de esta herramienta el cumplimiento del protocolo de administración de medicamentos."]
["ALCANCE:",null,"Personal asistencial (Médico,enfermera, auxiliar de enfermería, odontólogo)."]
[]
["Para el diligenciamiento correcto del formato tenga en cuenta lo siguiente:"]
[]
["SEDE:",null,"Registrar la sede  habilitada donde se aplica la lista de chequeo de administración  segura de medicamentos ambulatorios y  hospitalarios."]
["SERVICIO:",null,"Registre el servicio en el que se aplica la lista de chequeo de administración segura de medicamentos ambulatorios y hospitalarios"]
["FECHA:",null,"Registrar día, mes y año en que se aplica la lista de chequeo de administración segura de medicamentos ambulatorios"]
["TURNO : ",null,"Seccione con una \"X\" el turno en que se aplica la lista de chequeo,según sea el caso:                                                                          (M = mañana, T = Tarde, N= Noche)        "]
[]
["Desarrollo del formato:"]
[]
["ASPECTO",null,"Registro de los parámetros generales a evaluar (Generalidades)"]
["No.¨:",null,"Registro del número de criterios a evaluar."]
["CRITERIOS",null,"Registro de las actividades que se deben tener en cuenta  en la aplicación de la lista de chequeo de administración segura de medicamentos ambulatorios- Hospitalarios."]
["CUMPLIMIENTO:",null,"Registrar con una \"X\" en la casilla (C) cumple,(NC) No cumple , ( NA) No aplica,según las especificaciones registradas en cada una de los criterios."]
["OBSERVACIONES:",null,"Registre la información que crea sea necesaria."]
["SUBTOTAL:",null,"Registre en número el total de actividades que C (Cumple) ,NC (No cumple),NA(No aplica)para cada uno de los aspectos establecidos."]
["% CUMPLIMIENTO",null,"Registre  el resultado correspondiente  a el número de criterios que:(C)Cumple sobre el número de criterios evaluados."]
["NOMBRE Y FIRMA DEL AUDITOR :",null,"Registre el nombre  completo y firma del auditor responsable de ejecutar la lista de chequeo de administración segura de medicamentos ambulatorios"]
["EVALUACIÓN:",null,"Rangos de valoración del rendimiento en la adherencia de los criterios a las historias clínicas."]
["OPTIMO:",null,"La calificación de la lista de chequeo es igual al 100% en cumplimiento, siendo éste el mayor puntaje."]
["ADECUADA:",null,"La calificación de la lista de chequeo en un rango de 85% al 99% en cumplimiento."]
["DEFICIENTE:",null,"La calificación de la lista de chequeo en un rango de 70% al 84% en cumplimiento. "]
["INACEPTABLE:",null,"La calificación de la lista de chequeo es menor a 69% en cumplimiento, siendo éste el menor puntaje."]
[]
["CONTROL DE CAMBIOS"]
["Versión",null,null,"Descripción del cambio",null,null,"Fecha de aprobación "]
[1,null,null,"Elaboración del documento : Con la finalidad de obtener una mejora continua dentro del subproceso \" Evaluación y seguimiento \" contribuyendo  al fortalecimiento  del programa  seguridad institucional.",null,null,"2018-04-09"]
[2,null,null,"Traslado del documento : El formato GC-S6-F18 \"BASE DE DATOS LISTA DE CHEQUEO IDENTIFICACIÓN DE PACIENTE HOSPITALARIO Y AMBULATORIO\" no corresponde al subproceso de evaluación y seguimiento y se traslada al subproceso de Seguridad del Paciente con el código GC-S4-F10, esto se realiza con el objetivo de brindar un mejoramiento continuo al proceso de Garantia de la Calidad.",null,null,"2019-01-21"]
[3,null,null,"Modificación del documento: Se adicionaron los criterios 3, 4, 5 y 6 referentes al aspecto administrativo correspondiente a la Lista de Chequeo Identificación de Paciente Ambulatorio, esto se realiza con la finalidad de obtener una mejora continua al proceso de garantía de la Calidad del subproceso de Seguridad del Paciente.",null,null,"2019-05-30"]
[4,null,null,"Modificación del documento: Se Modifica el documento con el fin de obtener una mejora continua en el subproceso de \"Seguridad del paciente\". Los ajustes que se realizaron fueron los siguientes: \n- Ajustes estructurales \n- Actualización de la vigencia",null,null,"2022-01-05"]
["Nombre: Luisana Camarillo Peñaranda\nContratista del área garantía de la calidad\n\nNombre: Juan Felipe Cabrera Peña\nContratista del área garantía de la calidad",null,null,"Nombre: Irma Susana Bermúdez Acosta\nContratista del área garantía de la calidad",null,null,"Nombre: Jose Antonio Muñoz Paz\nCargo: Gerente"]
["Elaboró",null,null,"Revisó",null,null,"Aprobó"]